[Event "*** Titled Tuesday Blitz"]
[Site "Chess.com"]
[Date "2018.09.04"]
[Round "4"]
[White "jacky72"]
[Black "evgenysharapov"]
[Result "0-1"]
[WhiteElo "2636"]
[BlackElo "2420"]
[TimeControl "180+2"]
[EndTime "14:26:39 PDT"]
[Termination "evgenysharapov won by resignation"]

1. d4 {[%clk 0:03:01.9]} 1... d5 {[%clk 0:03:00.2]} 2. c4 {[%clk 0:03:00.7]}
2... c6 {[%clk 0:03:00.8]} 3. cxd5 {[%clk 0:03:01.4]} 3... cxd5 {[%clk 0:03:01]}
4. Nc3 {[%clk 0:03:02.8]} 4... Nf6 {[%clk 0:03:01.1]} 5. Bf4 {[%clk 0:03:04]}
5... Nc6 {[%clk 0:03:01.3]} 6. e3 {[%clk 0:03:04.1]} 6... a6 {[%clk 0:03:01.7]}
7. Bd3 {[%clk 0:03:05.1]} 7... Bg4 {[%clk 0:02:59.4]} 8. f3 {[%clk 0:03:05.6]}
8... Bh5 {[%clk 0:02:59.9]} 9. Nge2 {[%clk 0:03:06.4]} 9... e6 {[%clk
0:03:00.3]} 10. Bg3 {[%clk 0:03:05.6]} 10... Bg6 {[%clk 0:02:59.3]} 11. O-O
{[%clk 0:03:05.7]} 11... Be7 {[%clk 0:02:58.1]} 12. Rc1 {[%clk 0:03:07.1]} 12...
O-O {[%clk 0:02:58.3]} 13. Bxg6 {[%clk 0:03:07.3]} 13... hxg6 {[%clk 0:02:58.5]}
14. e4 {[%clk 0:03:09.2]} 14... Rc8 {[%clk 0:02:55.1]} 15. a3 {[%clk 0:03:05.4]}
15... b5 {[%clk 0:02:55]} 16. Bf2 {[%clk 0:03:00.5]} 16... Na5 {[%clk
0:02:54.8]} 17. e5 {[%clk 0:02:58.5]} 17... Nd7 {[%clk 0:02:53.8]} 18. f4 {[%clk
0:02:59.6]} 18... Nc4 {[%clk 0:02:51.3]} 19. Rc2 {[%clk 0:03:01]} 19... Qb6
{[%clk 0:02:47.2]} 20. g4 {[%clk 0:03:01.3]} 20... a5 {[%clk 0:02:27.2]} 21. f5
{[%clk 0:03:00.1]} 21... b4 {[%clk 0:02:28.1]} 22. axb4 {[%clk 0:03:00.4]} 22...
axb4 {[%clk 0:02:28.6]} 23. fxe6 {[%clk 0:02:55.4]} 23... fxe6 {[%clk
0:02:17.7]} 24. Na4 {[%clk 0:02:55.7]} 24... Qa6 {[%clk 0:02:03.4]} 25. b3
{[%clk 0:02:55.5]} 25... Na3 {[%clk 0:01:58.5]} 26. Rxc8 {[%clk 0:02:54.1]}
26... Qxc8 {[%clk 0:01:58.8]} 27. Be1 {[%clk 0:02:51.4]} 27... Rxf1+ {[%clk
0:01:55]} 28. Kxf1 {[%clk 0:02:53.3]} 28... Qc2 {[%clk 0:01:45.5]} 29. Qxc2
{[%clk 0:02:54.3]} 29... Nxc2 {[%clk 0:01:45.9]} 30. Bd2 {[%clk 0:02:56.2]}
30... Kf7 {[%clk 0:01:31.8]} 31. Nb2 {[%clk 0:02:57.5]} 31... Nb8 {[%clk
0:01:23.8]} 32. Nd3 {[%clk 0:02:58.5]} 32... Nc6 {[%clk 0:01:23.6]} 33. Kf2
{[%clk 0:02:56.4]} 33... N2xd4 {[%clk 0:01:22.5]} 34. Nxd4 {[%clk 0:02:55.5]}
34... Nxd4 {[%clk 0:01:22.9]} 35. Bxb4 {[%clk 0:02:54.9]} 35... Nxb3 {[%clk
0:01:17.5]} 36. Bxe7 {[%clk 0:02:47]} 36... Kxe7 {[%clk 0:01:18]} 37. Ke3 {[%clk
0:02:48.9]} 37... g5 {[%clk 0:01:16.7]} 38. Nf2 {[%clk 0:02:49.6]} 38... Kf7
{[%clk 0:01:03.2]} 39. Kd3 {[%clk 0:02:44.9]} 39... Na5 {[%clk 0:00:59.7]} 40.
Kd4 {[%clk 0:02:39.7]} 40... Nc6+ {[%clk 0:00:59.7]} 41. Kc5 {[%clk 0:02:39.3]}
41... Nxe5 {[%clk 0:00:59.8]} 42. Kd6 {[%clk 0:02:40.1]} 42... Nf3 {[%clk
0:00:56.4]} 43. Nh3 {[%clk 0:02:38.3]} 43... d4 {[%clk 0:00:52]} 44. Nf2 {[%clk
0:02:38.2]} 44... Nxh2 {[%clk 0:00:38.7]} 45. Ke5 {[%clk 0:02:39]} 45... d3
{[%clk 0:00:38.2]} 46. Ke4 {[%clk 0:02:32.3]} 46... d2 {[%clk 0:00:37.9]} 47.
Kd3 {[%clk 0:02:34.1]} 47... Nxg4 {[%clk 0:00:36.5]} 48. Nd1 {[%clk 0:02:35.2]}
48... e5 {[%clk 0:00:35.6]} 49. Kxd2 {[%clk 0:02:35.8]} 49... Ke6 {[%clk
0:00:36.6]} 50. Kd3 {[%clk 0:02:35.9]} 50... Kf5 {[%clk 0:00:37.1]} 51. Nc3
{[%clk 0:02:37.7]} 51... Nf6 {[%clk 0:00:35.5]} 52. Ke3 {[%clk 0:02:38.1]} 52...
g4 {[%clk 0:00:35.8]} 53. Ne2 {[%clk 0:02:38.8]} 53... Nd5+ {[%clk 0:00:34.5]}
54. Kf2 {[%clk 0:02:40.7]} 54... e4 {[%clk 0:00:33]} 55. Ng3+ {[%clk 0:02:41.4]}
55... Ke5 {[%clk 0:00:33.8]} 56. Nh5 {[%clk 0:02:42.4]} 56... g6 {[%clk
0:00:33.6]} 57. Ng3 {[%clk 0:02:43.8]} 57... e3+ {[%clk 0:00:34.1]} 58. Ke2
{[%clk 0:02:44.9]} 58... Kd4 {[%clk 0:00:33.8]} 59. Nh1 {[%clk 0:02:41.2]} 59...
Nf4+ {[%clk 0:00:33.8]} 60. Ke1 {[%clk 0:02:43.1]} 60... Nh5 {[%clk 0:00:32.3]}
61. Ke2 {[%clk 0:02:43.1]} 61... Ke4 {[%clk 0:00:33.2]} 62. Ke1 {[%clk
0:02:44.3]} 62... Kf3 {[%clk 0:00:34]} 63. Kf1 {[%clk 0:02:45.7]} 63... g3
{[%clk 0:00:34.3]} 64. Kg1 {[%clk 0:02:41.8]} 64... g2 {[%clk 0:00:31.9]} 65.
Ng3 {[%clk 0:02:41.9]} 65... Nxg3 {[%clk 0:00:32.1]} 66. Kh2 {[%clk 0:02:43.4]}
66... Kf2 {[%clk 0:00:32]} 0-1

[Event "*** Titled Tuesday Blitz"]
[Site "Chess.com"]
[Date "2018.09.04"]
[Round "4"]
[White "Blagorod"]
[Black "Abdodi"]
[Result "0-1"]
[WhiteElo "1999"]
[BlackElo "2250"]
[TimeControl "180+2"]
[EndTime "14:26:41 PDT"]
[Termination "Abdodi won by checkmate"]

1. e4 {[%clk 0:03:01.9]} 1... c6 {[%clk 0:02:54.4]} 2. d4 {[%clk 0:03:02]} 2...
d5 {[%clk 0:02:52.9]} 3. exd5 {[%clk 0:03:02.8]} 3... cxd5 {[%clk 0:02:53.4]} 4.
Bd3 {[%clk 0:03:04.3]} 4... Nc6 {[%clk 0:02:51.2]} 5. c3 {[%clk 0:03:04.9]} 5...
e5 {[%clk 0:02:50.1]} 6. dxe5 {[%clk 0:02:55.9]} 6... Nxe5 {[%clk 0:02:52]} 7.
Bb5+ {[%clk 0:02:55.3]} 7... Bd7 {[%clk 0:02:52.1]} 8. Qxd5 {[%clk 0:02:40.4]}
8... Nc6 {[%clk 0:02:49]} 9. Nf3 {[%clk 0:02:13.2]} 9... Nf6 {[%clk 0:02:49.4]}
10. Qd1 {[%clk 0:02:04.4]} 10... Bc5 {[%clk 0:02:46.3]} 11. O-O {[%clk
0:01:58.5]} 11... O-O {[%clk 0:02:42.7]} 12. Bg5 {[%clk 0:01:58.6]} 12... Be7
{[%clk 0:02:27.6]} 13. Nbd2 {[%clk 0:01:55.1]} 13... Qb6 {[%clk 0:02:23.6]} 14.
a4 {[%clk 0:01:43.8]} 14... Bg4 {[%clk 0:02:15.8]} 15. h3 {[%clk 0:01:40.2]}
15... Bh5 {[%clk 0:02:15.6]} 16. Nc4 {[%clk 0:01:28.4]} 16... Qc7 {[%clk
0:02:15.3]} 17. Re1 {[%clk 0:01:16.3]} 17... Rad8 {[%clk 0:02:08.1]} 18. Qe2
{[%clk 0:01:08.7]} 18... Rfe8 {[%clk 0:02:07.2]} 19. Bxf6 {[%clk 0:01:06.3]}
19... gxf6 {[%clk 0:02:01]} 20. g4 {[%clk 0:01:02.4]} 20... Bg6 {[%clk
0:01:57.4]} 21. Rad1 {[%clk 0:00:58.8]} 21... Bf8 {[%clk 0:01:36.8]} 22. Qxe8
{[%clk 0:00:54.8]} 22... Rxe8 {[%clk 0:01:38.7]} 23. Rxe8 {[%clk 0:00:55.1]}
23... Kg7 {[%clk 0:01:40.3]} 24. Kg2 {[%clk 0:00:47.5]} 24... Qf4 {[%clk
0:01:28]} 25. Bxc6 {[%clk 0:00:38.3]} 25... bxc6 {[%clk 0:01:18.1]} 26. Rd4
{[%clk 0:00:38.7]} 26... Qc1 {[%clk 0:01:01.6]} 27. h4 {[%clk 0:00:31.9]} 27...
h5 {[%clk 0:00:57.8]} 28. g5 {[%clk 0:00:27.8]} 28... Bc5 {[%clk 0:00:48]} 29.
Rdd8 {[%clk 0:00:26.4]} 29... fxg5 {[%clk 0:00:33.4]} 30. Rg8+ {[%clk
0:00:20.5]} 30... Kf6 {[%clk 0:00:32]} 31. hxg5+ {[%clk 0:00:21.9]} 31... Kf5
{[%clk 0:00:32.7]} 32. Nd6+ {[%clk 0:00:20.1]} 32... Kg4 {[%clk 0:00:30.5]} 33.
Ne5+ {[%clk 0:00:17.7]} 33... Kh4 {[%clk 0:00:22.7]} 34. Nxg6+ {[%clk 0:00:18]}
34... fxg6 {[%clk 0:00:21.5]} 35. Rxg6 {[%clk 0:00:18.7]} 35... Qf4 {[%clk
0:00:21.6]} 36. b4 {[%clk 0:00:12.3]} 36... Qxf2+ {[%clk 0:00:21.8]} 37. Kh1
{[%clk 0:00:12]} 37... Qg1# {[%clk 0:00:22.7]} 0-1

[Event "*** Titled Tuesday Blitz"]
[Site "Chess.com"]
[Date "2018.09.04"]
[Round "4"]
[White "tteshan"]
[Black "AndrewDGreen"]
[Result "1-0"]
[WhiteElo "2049"]
[BlackElo "2200"]
[TimeControl "180+2"]
[EndTime "14:26:42 PDT"]
[Termination "tteshan won by resignation"]

1. d4 {[%clk 0:03:00.8]} 1... Nf6 {[%clk 0:03:00.7]} 2. c4 {[%clk 0:03:02.1]}
2... g6 {[%clk 0:03:01.7]} 3. Nc3 {[%clk 0:03:03.4]} 3... Bg7 {[%clk 0:03:02.5]}
4. e4 {[%clk 0:03:04.5]} 4... d6 {[%clk 0:03:03.7]} 5. Be2 {[%clk 0:03:05]} 5...
O-O {[%clk 0:03:03.3]} 6. Bg5 {[%clk 0:03:06.5]} 6... h6 {[%clk 0:03:00.7]} 7.
Be3 {[%clk 0:03:06.3]} 7... c5 {[%clk 0:03:01.7]} 8. d5 {[%clk 0:03:06.7]} 8...
e6 {[%clk 0:03:01.7]} 9. Qd2 {[%clk 0:03:07.7]} 9... exd5 {[%clk 0:03:02.7]} 10.
exd5 {[%clk 0:03:09.1]} 10... Kh7 {[%clk 0:03:03.9]} 11. h4 {[%clk 0:03:10]}
11... h5 {[%clk 0:02:10.1]} 12. Nf3 {[%clk 0:03:09.4]} 12... Ng4 {[%clk
0:01:50.8]} 13. Bf4 {[%clk 0:03:08.6]} 13... Re8 {[%clk 0:01:43.6]} 14. O-O
{[%clk 0:03:05.7]} 14... Bf5 {[%clk 0:01:30.3]} 15. Ng5+ {[%clk 0:03:04.4]}
15... Kg8 {[%clk 0:01:30.1]} 16. Bxg4 {[%clk 0:03:01.7]} 16... Bxg4 {[%clk
0:01:29.3]} 17. Nge4 {[%clk 0:03:00.7]} 17... Bf8 {[%clk 0:01:24.9]} 18. Bg5
{[%clk 0:02:57.5]} 18... Be7 {[%clk 0:01:25.8]} 19. Qf4 {[%clk 0:02:55.9]} 19...
Bxg5 {[%clk 0:00:59.5]} 20. hxg5 {[%clk 0:02:56.7]} 20... Re5 {[%clk 0:00:58.1]}
21. f3 {[%clk 0:02:51.5]} 21... Bf5 {[%clk 0:00:52.8]} 22. Nf6+ {[%clk
0:02:45.6]} 22... Kg7 {[%clk 0:00:53.1]} 23. Rfe1 {[%clk 0:02:44.3]} 23... Nd7
{[%clk 0:00:44.2]} 24. Nxh5+ {[%clk 0:02:34.2]} 24... gxh5 {[%clk 0:00:38.6]}
25. Rxe5 {[%clk 0:02:34.3]} 25... Nxe5 {[%clk 0:00:38.8]} 26. Qxf5 {[%clk
0:02:35]} 26... Qe7 {[%clk 0:00:26.8]} 27. b3 {[%clk 0:02:27.7]} 27... Re8
{[%clk 0:00:25]} 28. Ne4 {[%clk 0:02:27.3]} 28... Ng6 {[%clk 0:00:22.4]} 29.
Qf6+ {[%clk 0:02:18.8]} 29... Kg8 {[%clk 0:00:18.9]} 30. g3 {[%clk 0:01:57.9]}
30... Qe5 {[%clk 0:00:09.9]} 31. Qxe5 {[%clk 0:01:56.9]} 31... Nxe5 {[%clk
0:00:09.8]} 32. Nf6+ {[%clk 0:01:55.9]} 32... Kf8 {[%clk 0:00:09.9]} 33. Nxe8
{[%clk 0:01:56.7]} 33... Kxe8 {[%clk 0:00:11.8]} 34. Re1 {[%clk 0:01:56.8]}
34... Kd7 {[%clk 0:00:12.9]} 35. Kg2 {[%clk 0:01:56]} 35... a6 {[%clk
0:00:10.3]} 36. f4 {[%clk 0:01:55.2]} 36... Nd3 {[%clk 0:00:10.8]} 37. Re3
{[%clk 0:01:55]} 37... Nb4 {[%clk 0:00:12]} 38. a3 {[%clk 0:01:55.5]} 38... Nc2
{[%clk 0:00:12.8]} 39. Re2 {[%clk 0:01:55.1]} 39... Nd4 {[%clk 0:00:12.8]} 40.
Rb2 {[%clk 0:01:53.8]} 40... b5 {[%clk 0:00:13.9]} 41. Kh3 {[%clk 0:01:53.4]}
41... Nf3 {[%clk 0:00:11.1]} 42. Rf2 {[%clk 0:01:50.1]} 42... Nd4 {[%clk
0:00:11.6]} 43. Kh4 {[%clk 0:01:48.1]} 43... Nxb3 {[%clk 0:00:11.9]} 44. cxb5
{[%clk 0:01:48.4]} 44... axb5 {[%clk 0:00:13.8]} 45. Kxh5 {[%clk 0:01:48.1]}
45... c4 {[%clk 0:00:14.9]} 46. f5 {[%clk 0:01:46.5]} 46... Nd4 {[%clk
0:00:11.6]} 47. g6 {[%clk 0:01:43]} 47... fxg6+ {[%clk 0:00:12.7]} 48. fxg6
{[%clk 0:01:42.6]} 48... c3 {[%clk 0:00:14.1]} 49. g7 {[%clk 0:01:41.9]} 49...
c2 {[%clk 0:00:15.6]} 50. Rxc2 {[%clk 0:01:42.1]} 1-0

[Event "*** Titled Tuesday Blitz"]
[Site "Chess.com"]
[Date "2018.09.04"]
[Round "4"]
[White "NemtsevIgor"]
[Black "Korchmar_Vasiliy"]
[Result "0-1"]
[WhiteElo "2390"]
[BlackElo "2644"]
[TimeControl "180+2"]
[EndTime "14:26:49 PDT"]
[Termination "Korchmar_Vasiliy won by resignation"]

1. d4 {[%clk 0:03:01.9]} 1... Nf6 {[%clk 0:03:00.2]} 2. Bf4 {[%clk 0:03:02.2]}
2... d5 {[%clk 0:03:00.6]} 3. Nf3 {[%clk 0:03:02.9]} 3... c5 {[%clk 0:03:01.5]}
4. e3 {[%clk 0:03:03.5]} 4... Nc6 {[%clk 0:03:02.8]} 5. c3 {[%clk 0:03:04.5]}
5... Qb6 {[%clk 0:03:03.1]} 6. Qb3 {[%clk 0:03:05.2]} 6... c4 {[%clk 0:03:04.2]}
7. Qc2 {[%clk 0:03:06.3]} 7... Bf5 {[%clk 0:03:04.9]} 8. Qc1 {[%clk 0:03:07.4]}
8... e6 {[%clk 0:03:06.3]} 9. Nbd2 {[%clk 0:03:07.2]} 9... h6 {[%clk 0:03:07.6]}
10. Be2 {[%clk 0:03:08]} 10... Be7 {[%clk 0:03:08.8]} 11. O-O {[%clk 0:03:08.9]}
11... O-O {[%clk 0:03:10.3]} 12. Re1 {[%clk 0:03:10]} 12... Rfc8 {[%clk
0:03:11.3]} 13. Bd1 {[%clk 0:03:09.5]} 13... Qd8 {[%clk 0:03:12.3]} 14. Bc2
{[%clk 0:03:10.6]} 14... Bxc2 {[%clk 0:03:10.3]} 15. Qxc2 {[%clk 0:03:10.9]}
15... b5 {[%clk 0:03:12.2]} 16. a3 {[%clk 0:03:10.8]} 16... a5 {[%clk
0:03:12.7]} 17. e4 {[%clk 0:03:09.6]} 17... b4 {[%clk 0:03:13.6]} 18. axb4
{[%clk 0:03:05.8]} 18... axb4 {[%clk 0:03:15.5]} 19. h3 {[%clk 0:02:47.3]} 19...
b3 {[%clk 0:03:07.9]} 20. Qb1 {[%clk 0:02:36.2]} 20... Rxa1 {[%clk 0:03:06.6]}
21. Qxa1 {[%clk 0:02:37.3]} 21... Ra8 {[%clk 0:03:06.8]} 22. Qb1 {[%clk
0:02:36]} 22... Ra2 {[%clk 0:03:03.4]} 23. Ne5 {[%clk 0:02:27.5]} 23... Nxe5
{[%clk 0:03:01.8]} 24. Bxe5 {[%clk 0:02:21.4]} 24... Ba3 {[%clk 0:02:11.8]} 25.
Nxc4 {[%clk 0:01:58.3]} 25... dxc4 {[%clk 0:02:11.7]} 26. bxa3 {[%clk
0:01:59.4]} 26... Rxa3 {[%clk 0:01:51.9]} 27. d5 {[%clk 0:01:42.5]} 27... exd5
{[%clk 0:01:38.7]} 28. exd5 {[%clk 0:01:43]} 28... Nxd5 {[%clk 0:01:33.7]} 29.
Qe4 {[%clk 0:01:43.2]} 29... Nb6 {[%clk 0:01:03]} 30. Qg4 {[%clk 0:01:26.9]}
30... Qg5 {[%clk 0:01:02.9]} 31. Qd4 {[%clk 0:01:25.8]} 31... Ra6 {[%clk
0:00:52]} 32. Bc7 {[%clk 0:01:17.1]} 32... b2 {[%clk 0:00:17.6]} 33. Bxb6 {[%clk
0:01:13.2]} 33... Qc1 {[%clk 0:00:17.5]} 34. Qe4 {[%clk 0:00:45.3]} 34... Qxe1+
{[%clk 0:00:10.7]} 35. Qxe1 {[%clk 0:00:45.3]} 35... Ra1 {[%clk 0:00:11.6]} 0-1

[Event "*** Titled Tuesday Blitz"]
[Site "Chess.com"]
[Date "2018.09.04"]
[Round "4"]
[White "VeraNebolsina"]
[Black "pedromartinez91"]
[Result "1/2-1/2"]
[WhiteElo "2408"]
[BlackElo "2397"]
[TimeControl "180+2"]
[EndTime "14:26:54 PDT"]
[Termination "Game drawn by repetition"]

1. e4 {[%clk 0:03:01.9]} 1... e6 {[%clk 0:02:54.8]} 2. d4 {[%clk 0:03:02.2]}
2... d5 {[%clk 0:02:55.3]} 3. exd5 {[%clk 0:03:03.4]} 3... exd5 {[%clk
0:02:55.9]} 4. Nf3 {[%clk 0:03:04.6]} 4... Bd6 {[%clk 0:02:55.7]} 5. Bd3 {[%clk
0:03:05.5]} 5... Ne7 {[%clk 0:02:56.2]} 6. c4 {[%clk 0:02:46.3]} 6... dxc4
{[%clk 0:02:55.5]} 7. Bxc4 {[%clk 0:02:47.1]} 7... O-O {[%clk 0:02:52.1]} 8. h3
{[%clk 0:02:46.3]} 8... Bb4+ {[%clk 0:02:48.3]} 9. Bd2 {[%clk 0:02:44.8]} 9...
Bxd2+ {[%clk 0:02:48.3]} 10. Qxd2 {[%clk 0:02:45.7]} 10... Nd7 {[%clk
0:02:23.7]} 11. O-O {[%clk 0:02:38.3]} 11... Nb6 {[%clk 0:02:24.1]} 12. Bb3
{[%clk 0:02:38.2]} 12... Be6 {[%clk 0:02:12.5]} 13. Bxe6 {[%clk 0:02:16]} 13...
fxe6 {[%clk 0:02:14.4]} 14. Nc3 {[%clk 0:02:17.2]} 14... Ned5 {[%clk 0:01:59.1]}
15. Rfe1 {[%clk 0:01:59.6]} 15... Nf4 {[%clk 0:01:59.4]} 16. Re4 {[%clk
0:01:43.7]} 16... Nxh3+ {[%clk 0:01:39.5]} 17. Kh2 {[%clk 0:01:44.5]} 17... Rxf3
{[%clk 0:01:40.1]} 18. gxf3 {[%clk 0:01:45.5]} 18... Ng5 {[%clk 0:01:40.7]} 19.
Rf4 {[%clk 0:01:32]} 19... Qd6 {[%clk 0:01:27.9]} 20. Kg2 {[%clk 0:01:17.3]}
20... Nc4 {[%clk 0:01:26.9]} 21. Qc1 {[%clk 0:01:11.9]} 21... h6 {[%clk
0:00:39.8]} 22. Ne4 {[%clk 0:00:58.3]} 22... Qd5 {[%clk 0:00:38.2]} 23. Nxg5
{[%clk 0:00:47]} 23... hxg5 {[%clk 0:00:38.6]} 24. Re4 {[%clk 0:00:41.1]} 24...
Rf8 {[%clk 0:00:33.3]} 25. Qd1 {[%clk 0:00:27.5]} 25... Nd6 {[%clk 0:00:22.4]}
26. Re5 {[%clk 0:00:28]} 26... Qc6 {[%clk 0:00:18.3]} 27. Rc1 {[%clk 0:00:28.8]}
27... Qd7 {[%clk 0:00:18.5]} 28. Rxg5 {[%clk 0:00:28]} 28... Nf5 {[%clk
0:00:19.4]} 29. Rg4 {[%clk 0:00:20.4]} 29... c6 {[%clk 0:00:19.8]} 30. Qd3
{[%clk 0:00:20.6]} 30... Rf6 {[%clk 0:00:18.9]} 31. Rh1 {[%clk 0:00:21.3]} 31...
Qd5 {[%clk 0:00:17.7]} 32. Qe4 {[%clk 0:00:21.5]} 32... Qxa2 {[%clk 0:00:18.1]}
33. Rh5 {[%clk 0:00:20.3]} 33... Qxb2 {[%clk 0:00:17.3]} 34. Rxf5 {[%clk
0:00:19.8]} 34... exf5 {[%clk 0:00:10.3]} 35. Qe8+ {[%clk 0:00:20.4]} 35... Rf8
{[%clk 0:00:11.1]} 36. Qe6+ {[%clk 0:00:20.9]} 36... Rf7 {[%clk 0:00:12.3]} 37.
Qe8+ {[%clk 0:00:20.3]} 37... Rf8 {[%clk 0:00:12.4]} 38. Qe6+ {[%clk 0:00:21]}
38... Rf7 {[%clk 0:00:12.9]} 39. Qe8+ {[%clk 0:00:20.8]} 39... Rf8 {[%clk
0:00:14]} 40. Qe6+ {[%clk 0:00:21.3]} 1/2-1/2

[Event "*** Titled Tuesday Blitz"]
[Site "Chess.com"]
[Date "2018.09.04"]
[Round "4"]
[White "gmjlh"]
[Black "NateSolon"]
[Result "1-0"]
[WhiteElo "2708"]
[BlackElo "2515"]
[TimeControl "180+2"]
[EndTime "14:27:00 PDT"]
[Termination "gmjlh won by resignation"]

1. e4 {[%clk 0:03:01.9]} 1... e5 {[%clk 0:02:58.4]} 2. Nf3 {[%clk 0:03:02.7]}
2... d6 {[%clk 0:02:59.6]} 3. d4 {[%clk 0:03:02.6]} 3... exd4 {[%clk 0:03:01.5]}
4. Nxd4 {[%clk 0:03:04]} 4... Nf6 {[%clk 0:03:02.5]} 5. Nc3 {[%clk 0:03:04.9]}
5... Be7 {[%clk 0:03:03.7]} 6. Bf4 {[%clk 0:03:04.1]} 6... O-O {[%clk
0:03:04.5]} 7. Qd2 {[%clk 0:03:03.9]} 7... a6 {[%clk 0:03:05.5]} 8. O-O-O {[%clk
0:03:00.6]} 8... b5 {[%clk 0:03:06.2]} 9. e5 {[%clk 0:02:56.8]} 9... dxe5 {[%clk
0:02:56.8]} 10. Bxe5 {[%clk 0:02:57.1]} 10... c5 {[%clk 0:02:57.4]} 11. Nb3
{[%clk 0:02:49.8]} 11... Nc6 {[%clk 0:02:54]} 12. Qxd8 {[%clk 0:02:46.1]} 12...
Rxd8 {[%clk 0:02:53.9]} 13. Rxd8+ {[%clk 0:02:44.4]} 13... Bxd8 {[%clk
0:02:32.8]} 14. Bxf6 {[%clk 0:02:44.7]} 14... Bxf6 {[%clk 0:02:33.8]} 15. Nxc5
{[%clk 0:02:45.6]} 15... Bd4 {[%clk 0:01:56.7]} 16. N3e4 {[%clk 0:02:05.4]}
16... f5 {[%clk 0:01:24.5]} 17. c3 {[%clk 0:02:05.6]} 17... fxe4 {[%clk
0:01:25.6]} 18. cxd4 {[%clk 0:02:06.8]} 18... Bf5 {[%clk 0:01:20.2]} 19. Kd2
{[%clk 0:01:33.9]} 19... Nxd4 {[%clk 0:01:16.6]} 20. Ke3 {[%clk 0:01:34.7]}
20... Nc2+ {[%clk 0:01:14.4]} 21. Kf4 {[%clk 0:01:35.6]} 21... Bg6 {[%clk
0:01:01.7]} 22. Be2 {[%clk 0:01:28]} 22... Nb4 {[%clk 0:00:49.9]} 23. a3 {[%clk
0:01:12.7]} 23... Nd5+ {[%clk 0:00:50.4]} 24. Ke5 {[%clk 0:01:12.4]} 24... Nf6
{[%clk 0:00:47.5]} 25. Rd1 {[%clk 0:01:10.8]} 25... Re8+ {[%clk 0:00:46.7]} 26.
Kf4 {[%clk 0:01:10.9]} 26... Bf7 {[%clk 0:00:30.5]} 27. Nxa6 {[%clk 0:01:00.4]}
27... e3 {[%clk 0:00:31.6]} 28. fxe3 {[%clk 0:00:24.3]} 28... Nd5+ {[%clk
0:00:31.8]} 29. Kg3 {[%clk 0:00:19.6]} 29... Nxe3 {[%clk 0:00:30.4]} 30. Rd2
{[%clk 0:00:20.5]} 30... Nc4 {[%clk 0:00:28.5]} 31. Bxc4 {[%clk 0:00:21.5]}
31... Bxc4 {[%clk 0:00:30.4]} 32. Nc5 {[%clk 0:00:20.1]} 32... Rc8 {[%clk
0:00:26]} 33. Ne4 {[%clk 0:00:19.5]} 33... Rc6 {[%clk 0:00:23.9]} 34. Rd8+
{[%clk 0:00:12]} 34... Kf7 {[%clk 0:00:24.8]} 35. Rd6 {[%clk 0:00:13]} 35... Rc7
{[%clk 0:00:21.5]} 36. Kf4 {[%clk 0:00:13.2]} 36... h6 {[%clk 0:00:22.3]} 37.
Rd2 {[%clk 0:00:13.9]} 37... Re7 {[%clk 0:00:22.8]} 38. Nd6+ {[%clk 0:00:14.7]}
38... Kg6 {[%clk 0:00:21.8]} 39. Nxc4 {[%clk 0:00:15.5]} 39... bxc4 {[%clk
0:00:23.7]} 40. Rc2 {[%clk 0:00:16.4]} 40... Rb7 {[%clk 0:00:23.7]} 41. Ke4
{[%clk 0:00:17.1]} 41... Kf6 {[%clk 0:00:20.3]} 42. Kd4 {[%clk 0:00:18.1]} 1-0

[Event "*** Titled Tuesday Blitz"]
[Site "Chess.com"]
[Date "2018.09.04"]
[Round "4"]
[White "Vegan4future"]
[Black "AkibaRubi"]
[Result "0-1"]
[WhiteElo "2412"]
[BlackElo "2489"]
[TimeControl "180+2"]
[EndTime "14:27:00 PDT"]
[Termination "AkibaRubi won by resignation"]

1. d4 {[%clk 0:03:01.9]} 1... Nf6 {[%clk 0:02:59.2]} 2. c4 {[%clk 0:03:00]} 2...
g6 {[%clk 0:03:00.2]} 3. Nf3 {[%clk 0:03:01.3]} 3... Bg7 {[%clk 0:03:01.1]} 4.
g3 {[%clk 0:03:02.6]} 4... O-O {[%clk 0:03:01.9]} 5. Bg2 {[%clk 0:03:04]} 5...
b6 {[%clk 0:03:03.1]} 6. O-O {[%clk 0:03:04.5]} 6... Bb7 {[%clk 0:03:04]} 7. Nc3
{[%clk 0:02:51.7]} 7... Ne4 {[%clk 0:03:04.5]} 8. Nxe4 {[%clk 0:02:52.6]} 8...
Bxe4 {[%clk 0:03:06.3]} 9. Be3 {[%clk 0:02:10]} 9... d5 {[%clk 0:03:05.8]} 10.
Rc1 {[%clk 0:02:03.9]} 10... Nc6 {[%clk 0:03:00.8]} 11. Qa4 {[%clk 0:01:58.6]}
11... Qd7 {[%clk 0:02:50.9]} 12. Rfd1 {[%clk 0:01:54.1]} 12... a6 {[%clk
0:02:39.8]} 13. cxd5 {[%clk 0:01:45.9]} 13... Qxd5 {[%clk 0:02:37.3]} 14. Ne1
{[%clk 0:01:44]} 14... Bxg2 {[%clk 0:02:35]} 15. Nxg2 {[%clk 0:01:45.9]} 15...
b5 {[%clk 0:02:32.2]} 16. Qb3 {[%clk 0:01:30]} 16... Qxb3 {[%clk 0:02:30.9]} 17.
axb3 {[%clk 0:01:31.9]} 17... Na5 {[%clk 0:02:32.7]} 18. Rxc7 {[%clk 0:01:31.7]}
18... e6 {[%clk 0:02:27.1]} 19. Rd3 {[%clk 0:01:21.9]} 19... Rfc8 {[%clk
0:02:26.4]} 20. Bf4 {[%clk 0:01:22.4]} 20... g5 {[%clk 0:01:43.8]} 21. Rxc8+
{[%clk 0:01:19]} 21... Rxc8 {[%clk 0:01:45.5]} 22. Bxg5 {[%clk 0:01:20.8]} 22...
Rc2 {[%clk 0:01:46.1]} 23. Bd2 {[%clk 0:01:19.3]} 23... Nxb3 {[%clk 0:01:44.9]}
24. Rxb3 {[%clk 0:01:18.5]} 24... Rxd2 {[%clk 0:01:45.8]} 25. Nf4 {[%clk
0:01:06.1]} 25... Bxd4 {[%clk 0:01:44.4]} 26. Rd3 {[%clk 0:00:54.3]} 26... Rxd3
{[%clk 0:01:40.2]} 27. Nxd3 {[%clk 0:00:56.2]} 27... a5 {[%clk 0:01:41.6]} 28.
e3 {[%clk 0:00:56.2]} 28... Bf6 {[%clk 0:01:40.3]} 29. Kf1 {[%clk 0:00:57.3]}
29... a4 {[%clk 0:01:40.8]} 30. Ke2 {[%clk 0:00:55.8]} 30... Bxb2 {[%clk
0:01:41.5]} 31. Kd2 {[%clk 0:00:53.1]} 31... Kg7 {[%clk 0:01:26.4]} 32. Kc2
{[%clk 0:00:44.3]} 32... Ba3 {[%clk 0:01:27.3]} 33. Kc3 {[%clk 0:00:43.1]} 33...
Be7 {[%clk 0:01:26.5]} 34. f4 {[%clk 0:00:41.9]} 34... h5 {[%clk 0:01:26.1]} 35.
h3 {[%clk 0:00:42.4]} 35... f5 {[%clk 0:01:25.7]} 36. Nf2 {[%clk 0:00:31.2]}
36... b4+ {[%clk 0:01:24.3]} 37. Kb2 {[%clk 0:00:31.9]} 37... Kh6 {[%clk
0:01:09.3]} 38. e4 {[%clk 0:00:32.6]} 38... Bc5 {[%clk 0:01:02.3]} 39. Nd3
{[%clk 0:00:32.8]} 39... Bd4+ {[%clk 0:01:03.1]} 40. Kc2 {[%clk 0:00:33.3]}
40... b3+ {[%clk 0:01:03.8]} 41. Kb1 {[%clk 0:00:33.4]} 41... fxe4 {[%clk
0:01:05.5]} 42. Nc1 {[%clk 0:00:33.6]} 42... e3 {[%clk 0:01:04.8]} 43. g4 {[%clk
0:00:34.1]} 43... a3 {[%clk 0:00:59.5]} 44. Nxb3 {[%clk 0:00:33.7]} 44... e2
{[%clk 0:01:00.2]} 45. Nxd4 {[%clk 0:00:29.9]} 45... e1=Q+ {[%clk 0:01:01.1]}
46. Kc2 {[%clk 0:00:31.8]} 46... a2 {[%clk 0:00:59.4]} 0-1